fUST/lending_fUST_20240115
["ID","MTS","AMOUNT","RATE_DAILY","PERIOD"]
[311594645,1705260644716,-287.6321039,0.00027671,2]
[311594646,1705260644725,-500.0,0.00027671,2]
[311594647,1705260644734,-500.0,0.00027671,2]
[311594648,1705260644743,-5453.3606321,0.00027671,2]
[311594649,1705260644766,-1725.3293679,0.00027671,2]
[311594650,1705260644775,-525.25762534,0.00027671,2]
[311594651,1705260644785,-500.0,0.00027671,2]
[311594652,1705260644794,-500.0,0.00027671,2]
[311594653,1705260644803,-516.0820089,0.00027671,2]
[311594654,1705260644812,-500.0,0.00027671,2]
[311594655,1705260644821,-1154.39313535,0.00027671,2]
[311594656,1705260644836,-2131.19686465,0.00027671,2]
[311594657,1705260644846,-2323.35,0.00027671,2]
[311594658,1705260644856,-27473.49,0.00027671,2]
[311594659,1705260644865,-2015.0,0.00027671,2]
[311594660,1705260644874,-500.0,0.00027671,2]
[311594661,1705260644882,-500.0,0.00027671,2]
[311594662,1705260644892,-500.0,0.00027671,2]
[311594663,1705260644901,-500.0,0.00027671,2]
[311594664,1705260644909,-500.0,0.00027671,2]
[311594665,1705260644918,-18241.2,0.00027671,2]
[311594666,1705260644928,-500.0,0.00027671,2]
[311594667,1705260644937,-406.80805071,0.00027671,2]
[311594668,1705260644948,-500.0,0.00027671,2]
[311594669,1705260644957,-500.0,0.00027671,2]
[311594670,1705260644966,-500.0,0.00027671,2]
[311594671,1705260644975,-500.0,0.00027671,2]
[311594672,1705260644985,-323.46114745,0.00027671,2]
[311594673,1705260644995,-525.36,0.00027671,2]
[311594674,1705260645005,-500.0,0.00027671,2]
[311594675,1705260645014,-500.0,0.00027671,2]
[311594676,1705260645023,-500.0,0.00027671,2]
[311594677,1705260645032,-500.0,0.00027671,2]
[311594678,1705260645041,-500.0,0.00027671,2]
[311594679,1705260645050,-500.0,0.00027671,2]
[311594680,1705260645059,-500.0,0.00027671,2]
[311594681,1705260645068,-838.1,0.00027671,2]
[311594682,1705260645076,-500.0,0.00027671,2]
[311594683,1705260645086,-500.0,0.00027671,2]
[311594684,1705260645095,-500.0,0.00027671,2]
[311594685,1705260645104,-2839.06,0.00027671,2]
[311594686,1705260645113,-1187.61,0.00027671,2]
[311594687,1705260645122,-500.0,0.00027671,2]
[311594688,1705260645131,-500.0,0.00027671,2]
[311594689,1705260645141,-500.0,0.00027671,2]
[311594690,1705260645150,-500.0,0.00027671,2]
[311594691,1705260645160,-355.23069311,0.00027671,2]
[311594692,1705260645170,-7873.88,0.00027671,2]
[311594693,1705260645179,-500.0,0.00027671,2]
[311594694,1705260645188,-1479.0,0.00027671,2]
[311594695,1705260645198,-500.0,0.00027671,2]
[311594696,1705260645207,-500.0,0.00027671,2]
[311594697,1705260645216,-500.0,0.00027671,2]
[311594698,1705260645225,-1449.47444217,0.00027671,2]
[311594699,1705260645406,-1346.91555783,0.00027671,2]
[311594700,1705260645415,-500.0,0.00027671,2]
[311594701,1705260645424,-848.05,0.00027671,2]
[311594702,1705260645433,-688.18928243,0.000277,2]
[311594703,1705260645442,-289.86444136,0.00027943,2]
[311594704,1705260645451,-178.4551548,0.00027943,2]
[311594705,1705260645461,-156.76049367,0.00027943,2]
[311594706,1705260645470,-776.12241661,0.00027944,2]
[311594707,1705260645480,-418.17951155,0.00027944,4]
[311594708,1705260645488,-649.81468027,0.00027944,4]
[311594709,1705260645498,-559.8,0.00027944,2]
[311594710,1705260645506,-559.8,0.00027944,2]
[311594711,1705260645515,-559.8,0.00027944,2]
[311594712,1705260645524,-559.8,0.00027944,2]
[311594713,1705260645533,-559.8,0.00027944,2]
[311594714,1705260645543,-559.8,0.00027944,2]
[311594715,1705260645552,-559.8,0.00027944,2]
[311594716,1705260645561,-559.8,0.00027944,2]
[311594717,1705260645570,-559.8,0.00027944,2]
[311594718,1705260645578,-559.82,0.00027944,2]
[311594719,1705260645587,-174.30195079,0.00027945,2]
[311594720,1705260645602,-325.69804921,0.00027945,2]
[311594721,1705260645611,-500.0,0.00027945,2]
[311594722,1705260645620,-500.0,0.00027945,2]
[311594723,1705260645629,-1527.9,0.00027945,2]
[311594724,1705260645638,-500.0,0.00027945,2]
[311594725,1705260645647,-500.0,0.00027945,2]
[311594726,1705260645656,-500.0,0.00027945,2]
[311594727,1705260645665,-417.80270551,0.00027945,2]
[311594728,1705260645674,-500.0,0.00027945,2]
[311594729,1705260645684,-700.82,0.00027945,2]
[311594730,1705260645693,-500.0,0.00027945,2]
[311594731,1705260645702,-939.82,0.00027945,2]
[311594732,1705260645711,-500.0,0.00027945,2]
[311594733,1705260645720,-500.0,0.00027945,2]
[311594734,1705260645729,-500.0,0.00027945,2]
[311594735,1705260645738,-500.0,0.00027945,2]
[311594736,1705260645748,-676.99,0.00027945,2]
[311594737,1705260645757,-500.0,0.00027945,2]
[311594738,1705260645766,-500.0,0.00027945,2]
[311594739,1705260645775,-500.0,0.00027945,2]
[311594740,1705260645783,-500.0,0.00027945,2]
[311594741,1705260645792,-500.0,0.00027945,2]
[311594742,1705260645801,-778.84,0.00027945,2]
[311594743,1705260645810,-500.0,0.00027945,2]
[311594744,1705260645820,-500.0,0.00027945,2]
[311594745,1705260645829,-500.0,0.00027945,2]
[311594746,1705260645838,-500.0,0.00027945,2]
[311594747,1705260645847,-501.79627418,0.00027945,2]
[311594748,1705260645856,-500.0,0.00027945,2]
[311594749,1705260645865,-500.0,0.00027945,2]
[311594750,1705260645874,-500.0,0.00027945,2]
[311594751,1705260645883,-677.43,0.00027945,2]
[311594752,1705260645892,-500.0,0.00027945,2]
[311594753,1705260645901,-1365.86,0.00027945,2]
[311594754,1705260645910,-598.12,0.00027945,2]
[311594755,1705260645919,-500.0,0.00027945,2]
[311594756,1705260645929,-500.0,0.00027945,2]
[311594757,1705260645938,-500.0,0.00027945,2]
[311594758,1705260645950,-1253.81,0.00027945,2]
[311594759,1705260645959,-880.26862505,0.00027945,2]
[311594761,1705260645972,-731.88137495,0.00027945,2]
[311594763,1705260645982,-500.0,0.00027945,2]
[311594765,1705260645991,-500.0,0.00027945,2]
[311594766,1705260646001,-780.35,0.00027945,2]
[311594767,1705260646073,-500.0,0.00027945,2]
[311594768,1705260646104,-500.0,0.00027945,2]
[311594769,1705260646124,-569.53502603,0.00027945,2]
[311594770,1705260646146,-823.27,0.00027945,2]
[311594771,1705260646166,-1114.5,0.00027945,2]
[311594772,1705260646186,-500.0,0.00027945,2]
[311594773,1705260646209,-505.42,0.00027945,2]
[311594774,1705260646230,-2845.46,0.00027945,2]
[311594775,1705260646250,-236.40930605,0.00027945,2]
[311594776,1705260646263,-500.0,0.00027945,2]
[311594777,1705260646276,-507.71507767,0.00027945,2]
[311594778,1705260646285,-500.0,0.00027945,2]
[311594779,1705260646295,-500.0,0.00027945,2]
[311594780,1705260646305,-206.49898559,0.00027945,2]
[311594781,1705260646325,-293.50101441,0.00027945,2]
[311594782,1705260646334,-500.0,0.00027945,2]
[311594783,1705260646343,-160.53656634,0.00027945,2]
[311594784,1705260646353,-500.0,0.00027945,2]
[311594785,1705260646363,-500.0,0.00027945,2]
[311594786,1705260646372,-500.0,0.00027945,2]
[311594787,1705260646381,-627.63,0.00027945,2]
[311594788,1705260646390,-654.82,0.00027945,2]
[311594789,1705260646400,-500.0,0.00027945,2]
[311594790,1705260646409,-1580.9,0.00027945,2]
[311594791,1705260646418,-500.0,0.00027945,2]
[311594792,1705260646427,-500.0,0.00027945,2]
[311594793,1705260646437,-500.0,0.00027945,2]
[311594794,1705260646446,-1520.33,0.00027945,2]
[311594795,1705260646460,-1184.04,0.00027945,2]
[311594796,1705260646469,-500.0,0.00027945,2]
[311594797,1705260646477,-503.58,0.00027945,2]
[311594798,1705260646486,-500.0,0.00027945,2]
[311594799,1705260646497,-638.99,0.00027945,2]
[311594800,1705260646506,-7192.12,0.00027945,2]
[311594801,1705260646515,-500.0,0.00027945,2]
[311594802,1705260646524,-604.48924827,0.00027945,2]
[311594803,1705260646536,-8592.96075173,0.00027945,2]
[311594804,1705260646545,-500.0,0.00027945,2]
[311594805,1705260646554,-500.0,0.00027945,2]
[311594807,1705260646563,-500.0,0.00027945,2]
[311594808,1705260646572,-500.0,0.00027945,2]
[311594810,1705260646581,-500.0,0.00027945,2]
[311594811,1705260646590,-852.98,0.00027945,2]
[311594812,1705260646599,-4537.73,0.00027945,2]
[311594813,1705260646609,-916.52,0.00027945,2]
[311594814,1705260646618,-500.0,0.00027945,2]
[311594815,1705260646627,-528.3,0.00027945,2]
[311594816,1705260646636,-1553.15,0.00027945,2]
[311594817,1705260646645,-500.0,0.00027945,2]
[311594818,1705260646654,-500.0,0.00027945,2]
[311594819,1705260646663,-7178.69,0.00027945,2]
[311594820,1705260646672,-500.0,0.00027945,2]
[311594821,1705260646681,-3285.59,0.00027945,2]
[311594822,1705260646690,-2323.35,0.00027945,2]
[311594823,1705260646702,-1024.72924827,0.00027945,2]
[311594833,1705260646824,-500.0,0.00027397,2]
[311594835,1705260646833,-2189.34832333,0.00027945,2]
[311594850,1705260647073,-561.53,0.00027387,3]
[311594852,1705260647083,-19479.49088112,0.00027945,2]
[311594857,1705260647134,-1069.5,0.00027945,2]
[311595143,1705261831731,-155.0,0.00025147,4]
[311595145,1705261831742,-1985.5364354,0.00025147,2]
[311595147,1705261831751,-1060.16606502,0.00025148,2]
[311595149,1705261831763,-434.1895,0.00025148,2]
[311595194,1705261838547,-1130.16189509,0.00025148,2]
[311595195,1705261838559,-2499.74012185,0.00025148,2]
[311595196,1705261838568,-166.666666,0.00025464,2]
[311595197,1705261838578,-161.46477132,0.00025845,2]
[311595198,1705261838588,-166.666666,0.00026158,2]
[311595199,1705261838597,-50000.0,0.00026763,2]
[311595200,1705261838606,-3479.89143237,0.00026847,2]
[311595201,1705261838615,-166.666666,0.00026852,2]
[311595202,1705261838624,-460.9594683,0.00027,2]
[311595203,1705261838633,-172.56175104,0.00027297,3]
[311595204,1705261838643,-468.51,0.00027387,3]
[311595205,1705261838652,-832.65986216,0.00027395,2]
[311595206,1705261838661,-466.95348561,0.00027395,2]
[311595207,1705261838670,-688.31895255,0.00027395,2]
[311595208,1705261838680,-198.9483755,0.00027395,2]
[311595209,1705261838689,-525.94938835,0.00027395,2]
[311595210,1705261838698,-253.71660409,0.00027395,2]
[311595211,1705261838708,-174.97130102,0.00027395,2]
[311595212,1705261838720,-174.94849142,0.00027395,5]
[311595213,1705261838729,-2028.5754946,0.00027396,2]
[311595214,1705261838740,-4239.46720335,0.00027397,7]
[311595215,1705261838750,-305.57833437,0.00027397,2]
[311595216,1705261838758,-504.19080815,0.00027397,2]
[311595217,1705261838771,-500.0,0.00027397,2]
[311595218,1705261838781,-500.0,0.00027397,2]
[311595219,1705261838790,-643.66658219,0.00027397,2]
[311595220,1705261838799,-500.0,0.00027397,2]
[311595221,1705261838809,-564.37200595,0.00027397,2]
[311595222,1705261838818,-258.34941335,0.00027397,2]
[311595223,1705261838828,-509.48319526,0.00027397,2]
[311595224,1705261838837,-500.0,0.00027397,2]
[311595225,1705261838847,-500.0,0.00027397,2]
[311595226,1705261838856,-500.0,0.00027397,2]
[311595227,1705261838866,-500.0,0.00027397,2]
[311595228,1705261838875,-500.0,0.00027397,2]
[311595229,1705261838884,-500.0,0.00027397,2]
[311595230,1705261838894,-500.0,0.00027397,2]
[311595231,1705261838903,-500.0,0.00027397,2]
[311595232,1705261838912,-508.10253494,0.00027397,2]
[311595233,1705261838921,-500.0,0.00027397,2]
[311595234,1705261838930,-500.0,0.00027397,2]
[311595235,1705261838940,-500.0,0.00027397,2]
[311595236,1705261838949,-500.0,0.00027397,2]
[311595237,1705261838958,-500.0,0.00027397,2]
[311595238,1705261838969,-500.0,0.00027397,2]
[311595239,1705261838979,-766.12,0.00027397,2]
[311595240,1705261838988,-500.0,0.00027397,2]
[311595241,1705261838998,-500.0,0.00027397,2]
[311595242,1705261839007,-500.0,0.00027397,2]
[311595243,1705261839017,-167.07286369,0.00027397,2]
[311595244,1705261839026,-507.54117207,0.00027397,2]
[311595245,1705261839035,-500.0,0.00027397,2]
[311595246,1705261839045,-500.0,0.00027397,2]
[311595247,1705261839054,-500.0,0.00027397,2]
[311595248,1705261839064,-500.0,0.00027397,2]
[311595249,1705261839073,-2734.03,0.00027397,2]
[311595250,1705261839083,-500.0,0.00027397,2]
[311595251,1705261839092,-624.63,0.00027397,2]
[311595252,1705261839101,-603.31,0.00027397,2]
[311595253,1705261839110,-523.95040652,0.00027397,2]
[311595254,1705261839119,-500.0,0.00027397,2]
[311595255,1705261839129,-500.0,0.00027397,2]
[311595256,1705261839138,-500.0,0.00027397,2]
[311595257,1705261839147,-500.0,0.00027397,2]
[311595258,1705261839157,-513.83673442,0.00027397,2]
[311595259,1705261839166,-500.0,0.00027397,2]
[311595260,1705261839175,-339.50865496,0.00027397,2]
[311595261,1705261839184,-1337.15,0.00027397,2]
[311595262,1705261839194,-677.43,0.00027397,2]
[311595263,1705261839202,-500.0,0.00027397,2]
[311595264,1705261839214,-515.26628988,0.00027397,2]
[311595265,1705261839222,-500.0,0.00027397,2]
[311595266,1705261839231,-500.0,0.00027397,2]
[311595267,1705261839242,-500.0,0.00027397,2]
[311595268,1705261839251,-500.0,0.00027397,2]
[311595269,1705261839260,-500.0,0.00027397,2]
[311595270,1705261839282,-500.0,0.00027397,2]
[311595271,1705261839292,-556.89,0.00027397,2]
[311595272,1705261839302,-500.0,0.00027397,2]
[311595273,1705261839312,-500.0,0.00027397,2]
[311595274,1705261839321,-500.0,0.00027397,2]
[311595275,1705261839334,-500.0,0.00027397,2]
[311595276,1705261839344,-500.0,0.00027397,2]
[311595277,1705261839355,-500.0,0.00027397,2]
[311595278,1705261839365,-500.0,0.00027397,2]
[311595279,1705261839376,-500.0,0.00027397,2]
[311595280,1705261839393,-1495.31,0.00027397,2]
[311595281,1705261839406,-500.0,0.00027397,2]
[311595282,1705261839423,-500.0,0.00027397,2]
[311595283,1705261839433,-500.0,0.00027397,2]
[311595284,1705261839444,-500.0,0.00027397,2]
[311595285,1705261839455,-8524.61,0.00027397,2]
[311595286,1705261839469,-500.0,0.00027397,2]
[311595287,1705261839479,-500.0,0.00027397,2]
[311595288,1705261839489,-500.0,0.00027397,2]
[311595289,1705261839500,-1166.65,0.00027397,2]
[311595290,1705261839510,-500.0,0.00027397,2]
[311595291,1705261839519,-500.0,0.00027397,2]
[311595292,1705261839530,-529.08421022,0.00027397,2]
[311595293,1705261839540,-373.72376298,0.00027397,2]
[311595294,1705261839550,-500.0,0.00027397,2]
[311595295,1705261839560,-500.0,0.00027397,2]
[311595296,1705261839569,-500.0,0.00027397,2]
[311595297,1705261839579,-500.0,0.00027397,2]
[311595298,1705261839589,-500.0,0.00027397,2]
[311595299,1705261839599,-500.0,0.00027397,2]
[311595300,1705261839608,-500.0,0.00027397,2]
[311595301,1705261839618,-500.0,0.00027397,2]
[311595302,1705261839628,-500.0,0.00027397,2]
[311595303,1705261839637,-500.0,0.00027397,2]
[311595304,1705261839647,-500.0,0.00027397,2]
[311595305,1705261839657,-500.0,0.00027397,2]
[311595306,1705261839667,-1037.38,0.00027397,2]
[311595307,1705261839676,-500.0,0.00027397,2]
[311595308,1705261839686,-502.48431119,0.00027397,2]
[311595309,1705261839696,-757.93,0.00027397,2]
[311595310,1705261839706,-500.0,0.00027397,2]
[311595311,1705261839719,-500.0,0.00027397,2]
[311595312,1705261839728,-500.0,0.00027397,2]
[311595313,1705261839738,-500.0,0.00027397,2]
[311595314,1705261839749,-500.0,0.00027397,2]
[311595315,1705261839759,-500.0,0.00027397,2]
[311595318,1705261839769,-215.85448759,0.00027397,2]
[311595319,1705261839779,-500.0,0.00027397,2]
[311595320,1705261839789,-1507.72,0.00027397,2]
[311595321,1705261839799,-500.0,0.00027397,2]
[311595322,1705261839808,-500.0,0.00027397,2]
[311595323,1705261839817,-500.0,0.00027397,2]
[311595324,1705261839942,-466.07673513,0.00027397,2]
[311595325,1705261839952,-500.0,0.00027397,2]
[311595327,1705261839965,-501.01249999,0.00027397,2]
[311595329,1705261839974,-500.0,0.00027397,2]
[311595330,1705261839984,-500.0,0.00027397,2]
[311595331,1705261839992,-500.0,0.00027397,2]
[311595332,1705261840001,-500.0,0.00027397,2]
[311595333,1705261840011,-615.79197859,0.00027397,2]
[311595334,1705261840020,-500.0,0.00027397,2]
[311595335,1705261840029,-230.2463212,0.00027397,2]
[311595336,1705261840039,-500.0,0.00027397,2]
[311595337,1705261840049,-500.0,0.00027397,2]
[311595338,1705261840058,-201.42102991,0.00027397,2]
[311595340,1705261840068,-500.0,0.00027397,2]
[311595342,1705261840077,-500.0,0.00027397,2]
[311595343,1705261840087,-2700.32,0.00027397,2]
[311595345,1705261840096,-2623.31,0.00027397,2]
[311595347,1705261840105,-538.47917633,0.00027397,2]
[311595349,1705261840115,-500.0,0.00027397,2]
[311595351,1705261840124,-500.0,0.00027397,2]
[311595353,1705261840133,-917.86,0.00027397,2]
[311595355,1705261840142,-500.0,0.00027397,2]
[311595357,1705261840152,-1404.25,0.00027397,2]
[311595359,1705261840162,-501.32142053,0.00027397,2]
[311595361,1705261840171,-500.0,0.00027397,2]
[311595362,1705261840180,-500.0,0.00027397,2]
[311595363,1705261840190,-500.0,0.00027397,2]
[311595364,1705261840199,-500.0,0.00027397,2]
[311595365,1705261840208,-500.0,0.00027397,2]
[311595366,1705261840220,-500.0,0.00027397,2]
[311595367,1705261840229,-6701.29,0.00027397,2]
[311595368,1705261840238,-331.78472333,0.00027397,2]
[311595369,1705261840247,-500.0,0.00027397,2]
[311595370,1705261840257,-4227.66,0.00027397,2]
[311595371,1705261840266,-172.71157866,0.00027397,2]
[311595372,1705261840275,-500.0,0.00027397,2]
[311595373,1705261840285,-500.0,0.00027397,2]
[311595374,1705261840294,-714.4,0.00027397,2]
[311595375,1705261840303,-362.72743992,0.00027397,2]
[311595376,1705261840313,-500.0,0.00027397,2]
[311595377,1705261840323,-454.73107322,0.00027397,2]
[311595378,1705261840333,-500.0,0.00027397,2]
[311595379,1705261840342,-500.0,0.00027397,2]
[311595380,1705261840351,-500.0,0.00027397,2]
[311595381,1705261840360,-500.0,0.00027397,2]
[311595382,1705261840370,-155.0,0.00027397,2]
[311595383,1705261840379,-500.0,0.00027397,2]
[311595384,1705261840389,-500.0,0.00027397,2]
[311595385,1705261840399,-638.37,0.00027397,2]
[311595386,1705261840408,-500.0,0.00027397,2]
[311595387,1705261840418,-500.0,0.00027397,2]
[311595388,1705261840427,-500.0,0.00027397,2]
[311595389,1705261840437,-500.0,0.00027397,2]
[311595390,1705261840447,-500.0,0.00027397,2]
[311595391,1705261840456,-500.0,0.00027397,2]
[311595392,1705261840468,-500.0,0.00027397,2]
[311595393,1705261840478,-701.27,0.00027397,2]
[311595394,1705261840488,-1444.74,0.00027397,2]
[311595395,1705261840501,-794.01,0.00027397,2]
[311595396,1705261840510,-500.0,0.00027397,2]
[311595397,1705261840519,-247.37652584,0.00027397,2]
[311595398,1705261840528,-500.0,0.00027397,2]
[311595399,1705261840537,-25845.53,0.00027397,2]
[311595400,1705261840546,-500.0,0.00027397,2]
[311595401,1705261840555,-500.0,0.00027397,2]
[311595402,1705261840564,-583.1174725,0.00027397,2]
[311595403,1705261840573,-3044.98,0.00027397,2]
[311595404,1705261840582,-500.0,0.00027397,2]
[311595405,1705261840592,-500.0,0.00027397,2]
[311595406,1705261840601,-361.41001069,0.00027397,2]
[311595407,1705261840610,-500.0,0.00027397,2]
[311595408,1705261840620,-500.0,0.00027397,2]
[311595409,1705261840629,-521.1942348,0.00027397,2]
[311595410,1705261840638,-6640.94,0.00027397,2]
[311595411,1705261840648,-500.0,0.00027397,2]
[311595412,1705261840657,-500.0,0.00027397,2]
[311595413,1705261840666,-1941.26,0.00027397,2]
[311595414,1705261840675,-500.0,0.00027397,2]
[311595415,1705261840684,-500.0,0.00027397,2]
[311595416,1705261840693,-500.0,0.00027397,2]
[311595417,1705261840702,-500.0,0.00027397,2]
[311595418,1705261840711,-308.24075342,0.00027397,2]
[311595419,1705261840725,-500.0,0.00027397,2]
[311595421,1705261840734,-500.0,0.00027397,2]
[311595423,1705261840745,-17698.12,0.00027397,2]
[311595424,1705261840754,-500.0,0.00027397,2]
[311595425,1705261840765,-500.0,0.00027397,2]
[311595426,1705261840775,-511.03,0.00027397,2]
[311595427,1705261840784,-500.0,0.00027397,2]
[311595428,1705261840793,-500.0,0.00027397,2]
[311595429,1705261840802,-930.61,0.00027397,2]
[311595430,1705261840810,-500.0,0.00027397,2]
[311595431,1705261840820,-2143.27,0.00027397,2]
[311595432,1705261840829,-500.0,0.00027397,2]
[311595433,1705261840839,-1109.47,0.00027397,2]
[311595434,1705261840850,-500.0,0.00027397,2]
[311595435,1705261840860,-500.0,0.00027397,2]
[311595436,1705261840870,-500.0,0.00027397,2]
[311595437,1705261840879,-500.0,0.00027397,2]
[311595438,1705261840888,-500.0,0.00027397,2]
[311595439,1705261840898,-500.0,0.00027397,2]
[311595440,1705261840907,-7582.23,0.00027397,2]
[311595441,1705261840916,-500.0,0.00027397,2]
[311595442,1705261840926,-1437.92,0.00027397,2]
[311595443,1705261840935,-500.0,0.00027397,2]
[311595444,1705261840944,-500.0,0.00027397,2]
[311595445,1705261840952,-500.0,0.00027397,2]
[311595446,1705261840962,-500.0,0.00027397,2]
[311595447,1705261840974,-500.0,0.00027397,2]
[311595448,1705261840983,-500.0,0.00027397,2]
[311595449,1705261840992,-824.5,0.00027397,2]
[311595450,1705261841002,-500.0,0.00027397,2]
[311595451,1705261841011,-1385.81,0.00027397,2]
[311595452,1705261841020,-500.0,0.00027397,2]
[311595453,1705261841029,-500.0,0.00027397,2]
[311595454,1705261841038,-500.0,0.00027397,2]
[311595455,1705261841047,-500.0,0.00027397,2]
[311595456,1705261841056,-500.0,0.00027397,2]
[311595457,1705261841065,-500.0,0.00027397,2]
[311595458,1705261841074,-500.0,0.00027397,2]
[311595459,1705261841083,-500.0,0.00027397,2]
[311595460,1705261841093,-500.0,0.00027397,2]
[311595461,1705261841101,-500.0,0.00027397,2]
[311595462,1705261841110,-500.0,0.00027397,2]
[311595463,1705261841119,-500.0,0.00027397,2]
[311595464,1705261841128,-500.0,0.00027397,2]
[311595465,1705261841137,-500.0,0.00027397,2]
[311595466,1705261841146,-773.11,0.00027397,2]
[311595467,1705261841155,-500.0,0.00027397,2]
[311595468,1705261841164,-261.02864836,0.00027397,2]
[311595469,1705261841173,-810.87,0.00027397,2]
[311595470,1705261841182,-1630.61,0.00027397,2]
[311595471,1705261841191,-500.0,0.00027397,2]
[311595472,1705261841201,-500.0,0.00027397,2]
[311595473,1705261841210,-500.0,0.00027397,2]
[311595474,1705261841221,-500.0,0.00027397,2]
[311595475,1705261841230,-500.0,0.00027397,2]
[311595476,1705261841239,-1212.89,0.00027397,2]
[311595477,1705261841248,-500.0,0.00027534,2]
[311595478,1705261841256,-166.666666,0.00027547,2]
[311595479,1705261841265,-206.17368925,0.0002767,2]
[311595480,1705261841275,-307.04456893,0.0002767,2]
[311595481,1705261841285,-567.88766866,0.0002767,2]
[311595482,1705261841294,-500.0,0.0002767,2]
[311595483,1705261841304,-372.78377968,0.0002767,2]
[311595484,1705261841313,-500.0,0.0002767,2]
[311595485,1705261841322,-167.39541539,0.0002767,2]
[311595486,1705261841331,-186.45866147,0.0002767,2]
[311595487,1705261841340,-500.0,0.0002767,2]
[311595488,1705261841351,-500.0,0.0002767,2]
[311595489,1705261841361,-500.0,0.0002767,2]
[311595490,1705261841370,-421.24233698,0.0002767,2]
[311595491,1705261841379,-500.0,0.00027671,2]
[311595492,1705261841388,-500.0,0.00027671,2]
[311595493,1705261841397,-500.0,0.00027671,2]
[311595494,1705261841406,-766.12,0.00027671,2]
[311595495,1705261841415,-500.0,0.00027671,2]
[311595496,1705261841424,-500.0,0.00027671,2]
[311595497,1705261841434,-500.0,0.00027671,2]
[311595498,1705261841443,-2734.03,0.00027671,2]
[311595499,1705261841452,-624.63,0.00027671,2]
[311595500,1705261841461,-603.31,0.00027671,2]
[311595501,1705261841472,-500.0,0.00027671,2]
[311595502,1705261841481,-500.0,0.00027671,2]
[311595503,1705261841490,-1337.15,0.00027671,2]
[311595504,1705261841499,-677.43,0.00027671,2]
[311595505,1705261841508,-500.0,0.00027671,2]
[311595506,1705261841517,-500.0,0.00027671,2]
[311595507,1705261841527,-556.89,0.00027671,2]
[311595508,1705261841536,-500.0,0.00027671,2]
[311595509,1705261841545,-234.14884369,0.00027671,2]
[311595510,1705261841555,-500.0,0.00027671,2]
[311595511,1705261841564,-1495.31,0.00027671,2]
[311595512,1705261841574,-500.0,0.00027671,2]
[311595513,1705261841583,-500.0,0.00027671,2]
[311595514,1705261841592,-500.0,0.00027671,2]
[311595515,1705261841601,-503.3309175,0.00027671,2]
[311595516,1705261841611,-8524.61,0.00027671,2]
[311595517,1705261841620,-500.0,0.00027671,2]
[311595518,1705261841629,-1166.65,0.00027671,2]
[311595519,1705261841638,-593.88964786,0.00027671,2]
[311595520,1705261841648,-317.23703066,0.00027671,2]
[311595521,1705261841657,-572.74150537,0.00027671,2]
[311595522,1705261841667,-500.0,0.00027671,2]
[311595523,1705261841676,-500.0,0.00027671,2]
[311595524,1705261841686,-500.0,0.00027671,2]
[311595525,1705261841695,-1037.38,0.00027671,2]
[311595526,1705261841704,-757.93,0.00027671,2]
[311595527,1705261841714,-500.0,0.00027671,2]